bitfinex/quotes_BTCUSD_20230115
["timestamp","ask_amount","ask_price","bid_price","bid_amount"]
[1673764867488,0.0155,20758.0,20757.0,0.336943]
[1673764867739,0.497241,20758.0,20757.0,0.336943]
[1673764869700,1.41712463,20758.0,20757.0,0.016]
[1673764870140,1.71712463,20758.0,20757.0,0.016]
[1673764870603,1.93840119,20758.0,20757.0,0.016]
[1673764870816,1.93140119,20758.0,20756.0,0.15575161]
[1673764871083,0.3139,20757.0,20756.0,0.15575161]
[1673764871273,1.28593,20757.0,20756.0,0.15575161]
[1673764872404,1.8807369,20757.0,20756.0,0.15675161]
[1673764874202,1.88063416,20757.0,20756.0,0.15675161]
[1673764877913,2.24143618,20757.0,20756.0,0.15675161]
[1673764879470,1.88063416,20757.0,20756.0,0.15675161]
[1673764880401,2.24142426,20757.0,20756.0,0.15675161]
[1673764880919,2.24141841,20757.0,20756.0,0.15675161]
[1673764881406,2.32686915,20757.0,20756.0,0.15675161]
[1673764881654,2.02381376,20757.0,20756.0,0.15675161]
[1673764881897,2.48840181,20757.0,20756.0,0.15675161]
[1673764882149,1.97549226,20757.0,20756.0,0.15675161]
[1673764882380,2.48593027,20757.0,20756.0,0.15675161]
[1673764882614,2.4683074,20757.0,20756.0,0.15675161]
[1673764882859,1.97549226,20757.0,20756.0,0.15675161]
[1673764883344,2.53532448,20757.0,20756.0,0.15675161]
[1673764883593,1.97549226,20757.0,20756.0,0.15675161]
[1673764883845,2.75982319,20757.0,20756.0,0.15675161]
[1673764884335,2.32700564,20757.0,20756.0,0.15675161]
[1673764885293,1.84559226,20757.0,20756.0,0.15675161]
[1673764885528,2.27840981,20757.0,20756.0,0.15675161]
[1673764886041,1.84559226,20757.0,20756.0,0.15675161]
[1673764886529,2.0662967,20757.0,20756.0,0.15675161]
[1673764886791,2.1961967,20757.0,20756.0,0.15675161]
[1673764887756,2.1822967,20757.0,20756.0,0.15675161]
[1673764887999,2.1961967,20757.0,20756.0,0.15675161]
[1673764888252,2.1961967,20757.0,20756.0,0.15175161]
[1673764889548,3.20349722,20757.0,20756.0,0.15175161]
[1673764889787,2.40797722,20757.0,20756.0,0.15175161]
[1673764890267,1.97549226,20757.0,20756.0,0.15175161]
[1673764890506,2.40794622,20757.0,20756.0,0.15175161]
[1673764891232,1.97549226,20757.0,20756.0,0.15175161]
[1673764891493,2.42297471,20757.0,20756.0,0.15175161]
[1673764891698,2.85530919,20757.0,20756.0,0.15175161]
[1673764891933,2.42297471,20757.0,20756.0,0.15175161]
[1673764892182,2.85530919,20757.0,20756.0,0.15175161]
[1673764892430,2.40782674,20757.0,20756.0,0.15175161]
[1673764892672,2.83133097,20757.0,20756.0,0.15175161]
[1673764892919,2.40782674,20757.0,20756.0,0.15175161]
[1673764893663,1.97549226,20757.0,20756.0,0.15175161]
[1673764893906,2.50755917,20757.0,20756.0,0.15175161]
[1673764894382,2.33710741,20757.0,20756.0,0.15175161]
[1673764894625,2.76939542,20757.0,20756.0,0.15175161]
[1673764895103,2.33710741,20757.0,20756.0,0.15175161]
[1673764895357,1.97549226,20757.0,20756.0,0.15175161]
[1673764896568,2.40769595,20757.0,20756.0,0.15175161]
[1673764897325,1.97549226,20757.0,20756.0,0.15175161]
[1673764901594,2.02381376,20757.0,20756.0,0.15175161]
[1673764901842,2.32307672,20757.0,20756.0,0.15175161]
[1673764903874,2.81015154,20757.0,20756.0,0.15175161]
[1673764904109,2.76183004,20757.0,20756.0,0.15175161]
[1673764904643,2.27475522,20757.0,20756.0,0.15175161]
[1673764906468,2.74049761,20757.0,20756.0,0.15175161]
[1673764906715,2.76183004,20757.0,20756.0,0.15175161]
[1673764907215,2.27475522,20757.0,20756.0,0.15175161]
[1673764907457,2.76183004,20757.0,20756.0,0.15175161]
[1673764907962,2.46256708,20757.0,20756.0,0.15175161]
[1673764908213,1.97549226,20757.0,20756.0,0.15175161]
[1673764908438,2.46256708,20757.0,20756.0,0.15175161]
[1673764908990,2.51088858,20757.0,20756.0,0.15175161]
[1673764909943,2.02381376,20757.0,20756.0,0.11772406]
[1673764910186,2.27436924,20757.0,20756.0,0.11772406]
[1673764910437,2.43195344,20757.0,20756.0,0.11772406]
[1673764910685,2.40426924,20757.0,20754.0,0.00570078]
[1673764910910,0.49482786,20756.0,20754.0,0.00570078]
[1673764911153,1.745433,20755.0,20754.0,0.00570078]
[1673764911419,2.27571904,20755.0,20754.0,0.00513071]
[1673764912985,1.78939407,20755.0,20754.0,0.00513071]
[1673764913241,2.22831664,20755.0,20754.0,0.00613071]
[1673764913504,1.92831664,20755.0,20754.0,0.09147071]
[1673764913765,1.91723845,20755.0,20754.0,0.95284945]
[1673764914021,2.08400156,20755.0,20754.0,0.69163846]
[1673764914295,2.08400156,20755.0,20754.0,0.60727846]
[1673764915066,2.08400156,20755.0,20754.0,0.52193846]
[1673764915067,1.8042464,20755.0,20754.0,0.52193846]
[1673764915328,1.44392745,20755.0,20754.0,0.00613071]
[1673764915567,1.74392745,20755.0,20754.0,0.00613071]
[1673764917084,2.061471,20755.0,20754.0,0.00613071]
[1673764917576,2.49392791,20755.0,20754.0,0.00613071]
[1673764917821,1.74392745,20755.0,20754.0,0.00613071]
[1673764918580,2.17638436,20755.0,20754.0,0.00613071]
[1673764919077,2.21592603,20755.0,20754.0,0.00613071]
[1673764919289,2.64838294,20755.0,20754.0,0.00613071]
[1673764919577,2.21592603,20755.0,20754.0,0.00613071]
[1673764920323,2.64860797,20755.0,20754.0,0.00613071]
[1673764921311,3.06306751,20755.0,20754.0,0.00613071]
[1673764921560,2.64838597,20755.0,20754.0,0.00613071]
[1673764921811,2.21570403,20755.0,20754.0,0.00613071]
[1673764922054,2.64847594,20755.0,20754.0,0.00613071]
[1673764922305,2.21570403,20755.0,20754.0,0.00613071]
[1673764924326,2.64848553,20755.0,20754.0,0.00613071]
[1673764924570,2.64848537,20755.0,20754.0,0.00613071]
[1673764925354,2.21570403,20755.0,20754.0,0.00613071]
[1673764925596,0.46603619,20754.0,20752.0,0.01097471]
[1673764925889,2.20085731,20753.0,20752.0,0.01097471]
[1673764926647,1.467974,20753.0,20752.0,0.01097471]
[1673764926904,2.20085731,20753.0,20752.0,0.01297471]
[1673764927160,2.20985731,20753.0,20752.0,0.01297471]
[1673764928151,1.776974,20753.0,20752.0,0.01297471]
[1673764928402,2.22383136,20753.0,20752.0,0.01297471]
[1673764928922,2.20979422,20753.0,20752.0,0.01297471]
[1673764929179,2.34568149,20753.0,20752.0,0.01297471]
[1673764929436,2.26323588,20753.0,20752.0,0.01297471]
[1673764929685,2.28406018,20753.0,20752.0,0.01297471]
[1673764929938,1.77691091,20753.0,20752.0,0.01297471]
[1673764930226,2.31155738,20753.0,20752.0,0.01297471]
[1673764930500,2.31155738,20753.0,20752.0,0.01088561]
[1673764930717,2.73948233,20753.0,20752.0,0.01088561]
[1673764931215,2.73948233,20753.0,20752.0,0.00888561]
[1673764931216,2.73048233,20753.0,20752.0,0.00888561]
[1673764931459,2.73448233,20753.0,20752.0,0.00988561]
[1673764932459,2.30655738,20753.0,20752.0,0.00988561]
[1673764932955,2.37299279,20753.0,20752.0,0.00988561]
[1673764933240,2.30655738,20753.0,20752.0,0.00988561]
[1673764933494,2.30655738,20753.0,20748.0,0.56488023]
[1673764933495,0.00365993,20751.0,20747.0,0.01544228]
[1673764933799,0.44651789,20748.0,20747.0,0.01544228]
[1673764934097,1.80614391,20748.0,20747.0,0.01544228]
[1673764934310,1.74259741,20748.0,20747.0,0.01544228]
[1673764934564,1.81465548,20748.0,20747.0,0.01544228]
[1673764934813,1.33268148,20748.0,20747.0,0.01544228]
[1673764935332,1.42368148,20748.0,20747.0,0.01544228]
[1673764935588,1.33268148,20748.0,20747.0,0.01544228]
[1673764935850,1.41068148,20748.0,20747.0,0.07448468]
[1673764936112,0.15259684,20748.0,20747.0,0.10078228]
[1673764936375,0.23059684,20748.0,20747.0,0.10078228]
[1673764937665,0.15259684,20748.0,20747.0,0.10078228]
[1673764937914,0.15759684,20748.0,20747.0,0.63333596]
[1673764938133,0.37363015,20748.0,20747.0,0.63333596]
[1673764938666,0.37363015,20748.0,20747.0,0.75416773]
[1673764938943,0.37363015,20748.0,20747.0,1.07511073]
[1673764939452,0.005,20748.0,20747.0,1.50655105]
[1673764939723,0.005,20748.0,20747.0,1.95231321]
[1673764939974,0.005,20748.0,20747.0,2.21161321]
[1673764940231,0.00365993,20751.0,20748.0,0.1]
[1673764940490,0.00365993,20751.0,20750.0,0.1291]
[1673764940762,0.00365993,20751.0,20750.0,0.449991]
[1673764941000,0.00365993,20751.0,20750.0,1.413845]
[1673764941264,0.00365993,20751.0,20750.0,2.04350269]
[1673764941500,0.00365993,20751.0,20750.0,1.56157569]
[1673764941761,0.01165993,20751.0,20750.0,1.67893452]
[1673764942012,0.14775677,20751.0,20750.0,1.18700752]
[1673764942269,0.15575677,20751.0,20750.0,1.19700752]
[1673764942776,0.37189341,20751.0,20750.0,1.19700752]
[1673764944566,0.15575677,20751.0,20750.0,1.19700752]
[1673764944811,0.37189341,20751.0,20750.0,1.19700752]
[1673764945550,0.15575677,20751.0,20750.0,1.19700752]
[1673764946383,0.15575677,20751.0,20750.0,1.08964869]
[1673764946900,0.37189341,20751.0,20750.0,1.08964869]
[1673764948128,0.15575677,20751.0,20750.0,1.08964869]
[1673764948622,0.37189341,20751.0,20750.0,1.08964869]
[1673764949129,0.37189341,20751.0,20750.0,1.09064869]
[1673764949374,0.15575677,20751.0,20750.0,1.09064869]
[1673764951130,0.70970057,20751.0,20750.0,1.09064869]
[1673764951384,0.99787598,20751.0,20750.0,0.76975769]
[1673764951634,0.70970057,20751.0,20750.0,0.76975769]
[1673764951884,0.70970057,20751.0,20750.0,1.09070069]
[1673764952398,0.99787598,20751.0,20750.0,0.461043]
[1673764953215,0.70970057,20751.0,20750.0,0.65973833]
[1673764953703,0.78173934,20751.0,20750.0,0.65973833]
[1673764954000,0.78173934,20751.0,20750.0,0.461043]
[1673764954252,0.78173934,20751.0,20750.0,0.355247]
[1673764954525,0.87039729,20751.0,20750.0,0.1401]
[1673764954756,0.78173934,20751.0,20750.0,0.461043]
[1673764955065,0.87039344,20751.0,20750.0,0.355247]
[1673764955333,0.99786755,20751.0,20750.0,0.6374756]
[1673764955590,0.99786755,20751.0,20750.0,0.461043]
[1673764956141,0.99786755,20751.0,20750.0,0.1401]
[1673764956399,0.99786755,20751.0,20750.0,0.461043]
[1673764956658,0.87039292,20751.0,20750.0,0.1401]
[1673764956902,1.23061483,20751.0,20750.0,0.1401]
[1673764957349,0.870392,20751.0,20750.0,0.1401]
[1673764957354,0.78173934,20751.0,20750.0,0.1401]
[1673764957604,0.9978815,20751.0,20750.0,0.1401]
[1673764958358,0.9978815,20751.0,20750.0,0.01]
[1673764958868,0.99789055,20751.0,20750.0,0.01]
[1673764959126,0.70971514,20751.0,20750.0,0.01]
[1673764959375,0.99789055,20751.0,20750.0,0.01]
[1673764959638,1.26364334,20751.0,20750.0,0.01]
[1673764959911,1.47979592,20751.0,20750.0,0.01]
[1673764961181,1.47979592,20751.0,20750.0,0.2396783]
[1673764961655,1.19162051,20751.0,20750.0,0.2396783]
[1673764961912,1.3357464,20751.0,20750.0,0.2396783]
[1673764962166,1.19162051,20751.0,20750.0,0.09534]
[1673764962458,1.14201566,20751.0,20750.0,0.97832575]
[1673764962709,0.63768767,20751.0,20750.0,0.97832575]
[1673764962926,0.85384025,20751.0,20750.0,0.97832575]
[1673764963187,0.85384025,20751.0,20750.0,0.65738275]
[1673764963440,0.99789192,20751.0,20750.0,0.15721828]
[1673764963693,0.85384446,20751.0,20750.0,0.01]
[1673764964240,0.99789192,20751.0,20750.0,0.01]
[1673764964802,0.85384639,20751.0,20750.0,0.01]
[1673764965022,0.85384379,20751.0,20750.0,0.01]
[1673764965274,0.99789192,20751.0,20750.0,0.15478426]
[1673764966064,0.85384662,20751.0,20750.0,0.15478426]
[1673764967380,0.85384662,20751.0,20750.0,0.77924883]
[1673764968664,0.99789192,20751.0,20750.0,0.01]
[1673764968968,2.56481564,20751.0,20750.0,0.01]
[1673764969752,2.27664023,20751.0,20750.0,0.01]
[1673764970027,1.91641832,20751.0,20750.0,0.0099233]
[1673764970533,1.9768086,20751.0,20750.0,0.0099233]
[1673764970787,2.03222332,20751.0,20750.0,0.0099233]
[1673764971040,1.81597646,20751.0,20750.0,0.0099233]
[1673764971329,2.26514772,20751.0,20750.0,0.0099233]
[1673764971837,1.81597646,20751.0,20750.0,0.0099233]
[1673764972311,1.82987646,20751.0,20750.0,0.0099233]
[1673764972637,2.27905238,20751.0,20750.0,0.0099233]
[1673764973838,1.99071944,20751.0,20750.0,0.0099233]
[1673764974302,2.27927333,20751.0,20750.0,0.0099233]
[1673764974552,1.83009741,20751.0,20750.0,0.0099233]
[1673764975582,2.27957911,20751.0,20750.0,0.0099233]
[1673764975839,2.26575697,20751.0,20750.0,0.0099233]
[1673764976095,2.26575697,20751.0,20750.0,0.0904294]
[1673764976345,2.03275979,20751.0,20750.0,0.0904294]
[1673764976608,2.26578256,20751.0,20750.0,0.0904294]
[1673764976863,1.97715081,20751.0,20750.0,0.0904294]
[1673764977843,1.61676053,20751.0,20750.0,0.0904294]
[1673764978088,1.61676053,20751.0,20750.0,0.0099233]
[1673764979833,1.61676053,20751.0,20750.0,0.0100433]
[1673764980796,0.46171102,20751.0,20750.0,0.0953833]
[1673764981049,0.75046742,20751.0,20750.0,0.762192]
[1673764981296,0.75046742,20751.0,20750.0,0.8384112]
[1673764982028,0.75896742,20751.0,20750.0,0.8384112]
[1673764983038,0.47021102,20751.0,20750.0,0.8384112]
[1673764983781,0.47021102,20751.0,20750.0,0.676852]
[1673764984039,0.47021614,20751.0,20750.0,0.0100433]
[1673764984311,0.40927694,20751.0,20750.0,0.0100433]
[1673764984559,0.10927694,20751.0,20750.0,0.0100433]
[1673764984786,0.10927694,20751.0,20750.0,0.06739111]
[1673764985031,0.47020944,20751.0,20750.0,0.06739111]
[1673764985250,0.95211344,20751.0,20750.0,0.06739111]
[1673764985719,1.44791744,20751.0,20750.0,0.0100433]
[1673764986007,1.44791744,20751.0,20750.0,0.70206218]
[1673764986008,0.37260984,20751.0,20750.0,0.70206218]
[1673764986263,0.01165993,20751.0,20750.0,0.69141225]
[1673764986540,0.01165993,20751.0,20750.0,3.08220997]
[1673764986821,0.01165993,20751.0,20750.0,2.51365536]
[1673764987314,0.01165993,20751.0,20750.0,3.75615056]
[1673764987580,0.01165993,20751.0,20750.0,1.95378674]
[1673764988352,0.01165993,20751.0,20750.0,2.51528748]
[1673764988860,0.01165993,20751.0,20750.0,1.95378674]
[1673764989077,0.01165993,20751.0,20750.0,1.80941674]
[1673764989331,0.01165993,20751.0,20750.0,1.7141508]
[1673764989858,0.01165993,20751.0,20750.0,1.1127133]
[1673764990836,0.01165993,20751.0,20750.0,1.58188433]
[1673764991072,0.01165993,20751.0,20750.0,1.1127133]
[1673764991311,0.01165993,20751.0,20750.0,1.50744046]
[1673764991530,0.01165993,20751.0,20750.0,1.84081391]
[1673764993131,0.01165993,20751.0,20750.0,1.31598675]
[1673764993650,0.01165993,20751.0,20750.0,1.80825667]
[1673764994660,0.01165993,20751.0,20750.0,1.80813667]
[1673764994909,0.01165993,20751.0,20750.0,1.47476322]
[1673764999697,0.01165993,20751.0,20750.0,0.99283622]
[1673765002149,0.01126951,20751.0,20750.0,0.99283622]
[1673765003970,0.01126951,20751.0,20750.0,0.90847622]
[1673765004475,0.01126951,20751.0,20750.0,0.88844934]
[1673765004732,0.01126951,20751.0,20750.0,1.20939234]
[1673765007885,0.01126951,20751.0,20750.0,0.90847622]
[1673765008078,0.01126951,20751.0,20750.0,0.58753322]
[1673765013305,0.01126951,20751.0,20750.0,0.90847622]
[1673765015343,0.01126951,20751.0,20750.0,0.58753322]
[1673765021389,0.01126951,20751.0,20750.0,0.0952633]
[1673765021653,0.01126951,20751.0,20750.0,3.252244]
[1673765021952,0.01126951,20751.0,20750.0,3.7094267]
[1673765022163,0.01126951,20751.0,20750.0,4.45685377]
[1673765022467,0.01126951,20751.0,20750.0,4.81777878]
[1673765022709,0.01126951,20751.0,20750.0,4.45685377]
[1673765022967,0.01126951,20751.0,20750.0,4.54615637]
[1673765023265,0.01126951,20751.0,20750.0,2.88532301]
[1673765023478,0.01126951,20751.0,20750.0,3.10188571]
[1673765023759,0.01126951,20751.0,20750.0,2.40812132]
[1673765024019,0.01126951,20751.0,20750.0,1.92619432]
[1673765024282,0.01126951,20751.0,20750.0,1.78191765]
[1673765025351,0.01126951,20751.0,20750.0,1.64985894]
[1673765025622,0.01126951,20751.0,20750.0,1.50547882]
[1673765025917,0.01126951,20751.0,20750.0,1.64985894]
[1673765026672,0.01126951,20751.0,20750.0,1.50547882]
[1673765026919,0.01126951,20751.0,20750.0,1.64985894]
[1673765027742,0.01126951,20751.0,20750.0,1.16793194]
[1673765027987,0.01126951,20751.0,20750.0,1.02355182]
[1673765029569,0.01126951,20751.0,20750.0,1.60547882]
[1673765029853,0.01126951,20751.0,20750.0,2.32318948]
[1673765030108,0.01126951,20751.0,20750.0,2.948049]
[1673765030375,0.01126951,20751.0,20750.0,3.42997342]
[1673765031352,0.01126951,20751.0,20750.0,3.2855933]
[1673765031608,0.01126951,20751.0,20750.0,3.33002098]
[1673765031861,0.01126951,20751.0,20750.0,3.94188126]
[1673765032099,0.01126951,20751.0,20750.0,3.94181562]
[1673765032370,0.01126951,20751.0,20750.0,2.70516497]
[1673765032907,0.01126951,20751.0,20750.0,3.6631135]
[1673765033127,0.01126951,20751.0,20750.0,3.18275643]
[1673765033699,0.01126951,20751.0,20750.0,2.00218382]
[1673765034184,0.01126951,20751.0,20750.0,1.8577541]
[1673765034432,0.01126951,20751.0,20750.0,1.3758271]
[1673765034708,0.01126951,20751.0,20750.0,0.57285365]
[1673765035519,0.01126951,20751.0,20750.0,0.86334696]
[1673765035768,0.01126951,20751.0,20750.0,1.18428996]
[1673765036031,0.01126951,20751.0,20750.0,0.86334696]
[1673765036817,0.01126951,20751.0,20750.0,1.18428996]
[1673765037269,0.01126951,20751.0,20750.0,0.86334696]
[1673765037481,0.01126951,20751.0,20750.0,1.18428996]
[1673765038246,0.01126951,20751.0,20750.0,1.18439341]
[1673765038489,0.01126951,20751.0,20750.0,1.07859741]
[1673765038733,0.01126951,20751.0,20750.0,0.86345041]
[1673765038965,0.008,20751.0,20750.0,0.5729571]
[1673765039185,0.008,20751.0,20750.0,0.57285365]
[1673765044509,0.64737997,20752.0,20750.0,0.57285365]
[1673765044760,0.43081371,20752.0,20750.0,0.86334696]
[1673765046003,0.64737997,20752.0,20750.0,0.85342366]
[1673765047026,1.61117097,20752.0,20750.0,0.85342366]
[1673765047293,1.39460471,20752.0,20750.0,0.85342366]
[1673765047546,1.39460471,20752.0,20751.0,0.15629534]
[1673765047832,1.39460471,20752.0,20750.0,0.47759035]
[1673765048052,1.40260471,20752.0,20750.0,0.49159035]
[1673765048332,1.39460471,20752.0,20750.0,0.47759035]
[1673765048559,1.61917097,20752.0,20751.0,0.014]
[1673765048816,1.61117097,20752.0,20750.0,0.47759035]
[1673765049063,1.61917097,20752.0,20750.0,0.49159035]
[1673765049308,1.61917097,20752.0,20750.0,0.67756863]
[1673765049557,1.61117097,20752.0,20750.0,0.66356863]
[1673765050031,1.61117097,20752.0,20750.0,0.47759035]
[1673765051779,1.61917097,20752.0,20751.0,0.014]
[1673765052804,1.61917097,20752.0,20750.0,0.47759035]
[1673765052805,1.61117097,20752.0,20750.0,0.47759035]
[1673765053063,1.61917097,20752.0,20750.0,0.49159035]
[1673765053310,1.61917097,20752.0,20751.0,0.10426903]
[1673765053554,1.62717097,20752.0,20751.0,0.11826903]
[1673765053773,1.62717097,20752.0,20750.0,0.47759035]
[1673765053774,1.61117097,20752.0,20750.0,0.47759035]
[1673765053986,1.61917097,20752.0,20750.0,0.49159035]
[1673765054256,1.61917097,20752.0,20750.0,0.47759035]
[1673765054257,1.61117097,20752.0,20750.0,0.47759035]
[1673765054499,1.61917097,20752.0,20751.0,0.014]
[1673765054742,1.75554488,20752.0,20750.0,0.66216863]
[1673765055522,1.32473117,20752.0,20750.0,0.66216863]
[1673765055785,1.33273117,20752.0,20750.0,0.67616863]
[1673765056034,0.14437391,20751.0,20750.0,0.67616863]
[1673765056286,0.481904,20751.0,20750.0,0.67616863]
[1673765057010,0.62627791,20751.0,20750.0,0.67616863]
[1673765057510,0.62627791,20751.0,20750.0,0.66216863]
[1673765057749,0.63427791,20751.0,20750.0,0.67616863]
[1673765058268,1.11618191,20751.0,20750.0,0.014]
[1673765058521,1.81722526,20751.0,20750.0,0.014]
[1673765059283,2.10584497,20751.0,20750.0,0.014]
[1673765060038,1.67168992,20751.0,20750.0,0.014]
[1673765060293,2.10630067,20751.0,20750.0,0.014]
[1673765060546,2.12618096,20751.0,20750.0,0.014]
[1673765063065,1.71491875,20751.0,20750.0,0.014]
[1673765063331,1.48288625,20751.0,20750.0,0.014]
[1673765064367,1.47488625,20751.0,20747.0,0.01544228]
[1673765064645,0.36038625,20748.0,20747.0,0.01544228]
[1673765064881,1.18017975,20748.0,20747.0,0.01534522]
[1673765065135,1.66948629,20748.0,20747.0,0.01534522]
[1673765065920,1.76848876,20748.0,20747.0,0.01534522]
[1673765066204,1.76848876,20748.0,20747.0,0.02834522]
[1673765066205,2.2557944,20748.0,20747.0,0.02834522]
[1673765066464,2.2642944,20748.0,20747.0,0.02834522]
[1673765067288,2.39654178,20748.0,20747.0,0.02834522]
[1673765067547,2.04591699,20748.0,20747.0,0.02834522]
[1673765068327,2.43605332,20748.0,20747.0,0.02834522]
[1673765069406,1.37158433,20748.0,20747.0,0.02834522]
[1673765069648,1.37158433,20748.0,20747.0,0.08911871]
[1673765070139,0.009,20748.0,20747.0,0.08911871]
[1673765070383,0.45627585,20749.0,20747.0,0.92086004]
[1673765070626,0.45627585,20749.0,20748.0,0.215222]
[1673765070875,0.45627585,20749.0,20747.0,0.59491704]
[1673765071113,0.45627585,20749.0,20748.0,0.0594917]
[1673765072622,0.45827585,20749.0,20748.0,0.0694917]
[1673765073102,0.002,20749.0,20748.0,0.0694917]
[1673765073358,0.002,20749.0,20748.0,0.5478886]
[1673765076648,0.002,20749.0,20748.0,0.4883969]
[1673765077443,0.002,20749.0,20748.0,1.2913139]
[1673765078441,0.002,20749.0,20748.0,1.8097139]
[1673765078692,0.002,20749.0,20748.0,1.331317]
[1673765079739,0.002,20749.0,20748.0,1.93599552]
[1673765079993,0.002,20749.0,20748.0,1.62842782]
[1673765080516,0.002,20749.0,20748.0,2.27814949]
[1673765080786,0.002,20749.0,20748.0,1.62842782]
[1673765081037,0.002,20749.0,20748.0,2.11040182]
[1673765081567,0.002,20749.0,20748.0,2.66068172]
[1673765082072,0.002,20749.0,20748.0,2.11040182]
[1673765084548,0.002,20749.0,20748.0,2.6988347]
[1673765085329,0.002,20749.0,20748.0,2.11040182]
[1673765087565,0.40116564,20753.0,20749.0,0.1]
[1673765087808,0.40116564,20753.0,20750.0,0.98076456]
[1673765088059,0.40116564,20753.0,20751.0,0.32089]
[1673765088313,0.5451222,20753.0,20750.0,0.57485661]
[1673765088563,0.5451222,20753.0,20751.0,0.56957537]
[1673765088808,0.6041222,20753.0,20752.0,0.06077349]
[1673765089074,0.36000228,20752.0,20750.0,0.09293361]
[1673765089328,0.50407623,20752.0,20750.0,0.09593361]
[1673765089570,0.50407623,20752.0,20750.0,0.09293361]
[1673765089791,0.50407623,20752.0,20751.0,0.0711163]
[1673765090004,0.98596623,20752.0,20751.0,0.0681163]
[1673765090280,1.26092621,20752.0,20751.0,0.0681163]
[1673765090531,1.04496623,20752.0,20751.0,0.0681163]
[1673765091264,1.26092621,20752.0,20751.0,0.0681163]
[1673765091521,1.53973326,20752.0,20751.0,0.0681163]
[1673765091746,1.59873326,20752.0,20751.0,0.003]
[1673765091955,1.74279987,20752.0,20751.0,0.003]
[1673765092243,1.74279651,20752.0,20751.0,0.003]
[1673765092484,1.59873326,20752.0,20751.0,0.003]
[1673765092742,1.74279915,20752.0,20751.0,0.003]
[1673765093264,1.74279915,20752.0,20751.0,0.0714163]
[1673765093813,1.74279915,20752.0,20751.0,0.003]
[1673765093814,1.68438107,20752.0,20751.0,0.003]
[1673765094079,1.68125786,20752.0,20751.0,0.003]
[1673765096008,1.66735786,20752.0,20751.0,0.003]
[1673765096283,1.68125786,20752.0,20751.0,0.003]
[1673765100759,2.11387575,20752.0,20751.0,0.003]
[1673765101747,1.68125786,20752.0,20751.0,0.003]
[1673765102225,2.09997575,20752.0,20751.0,0.003]
[1673765102501,2.11387575,20752.0,20751.0,0.003]
[1673765106413,1.98377575,20752.0,20751.0,0.003]
[1673765107975,1.98377575,20752.0,20751.0,0.00289076]
[1673765108495,1.55115786,20752.0,20751.0,0.00289076]
[1673765108748,1.55115786,20752.0,20751.0,0.00227153]
[1673765108749,2.33065786,20752.0,20751.0,0.00227153]
[1673765109006,2.33065786,20752.0,20747.0,0.01034522]
[1673765109305,0.0139,20748.0,20747.0,0.01034522]
[1673765109540,2.1856062,20748.0,20747.0,0.01034522]
[1673765109796,2.10390886,20748.0,20747.0,0.01034522]
[1673765111587,2.10390886,20748.0,20747.0,0.03934522]
[1673765111588,2.25546006,20748.0,20747.0,0.03934522]
[1673765111857,2.10990886,20748.0,20747.0,0.03934522]
[1673765112663,2.10990886,20748.0,20747.0,0.01034522]
[1673765112664,2.10390886,20748.0,20747.0,0.01034522]
[1673765112917,2.19690886,20748.0,20747.0,0.01034522]
[1673765114488,2.41502102,20748.0,20747.0,0.01034522]
[1673765114990,2.50802102,20748.0,20747.0,0.01034522]
[1673765115763,2.19690886,20748.0,20747.0,0.01034522]
[1673765119331,2.55619148,20748.0,20747.0,0.01034522]
[1673765120691,2.19690886,20748.0,20747.0,0.01034522]
[1673765121225,2.19690886,20748.0,20747.0,0.00808494]
[1673765121750,2.10390886,20748.0,20747.0,0.00808494]
[1673765121999,2.19790886,20748.0,20747.0,0.00808494]
[1673765122783,2.40105309,20748.0,20747.0,9.4e-07]
[1673765123051,0.1,20747.0,20745.0,0.0167817]
[1673765123318,2.1493982,20746.0,20745.0,0.0167817]
[1673765123580,2.4493982,20746.0,20745.0,0.0167817]
[1673765124925,2.5433982,20746.0,20745.0,0.0167817]
[1673765126141,3.00659658,20746.0,20745.0,0.0167817]
[1673765126396,2.74689658,20746.0,20745.0,0.0167817]
[1673765128253,1.92444686,20746.0,20745.0,0.0167817]
[1673765129542,2.05454686,20746.0,20745.0,0.0167817]
[1673765130386,2.4867886,20746.0,20745.0,7e-07]
[1673765130650,2.05454686,20746.0,20743.0,0.01780835]
[1673765131127,0.144,20744.0,20743.0,0.01780835]
[1673765131388,1.67458786,20744.0,20743.0,0.01780835]
[1673765131644,1.97458786,20744.0,20743.0,0.01780835]
[1673765131893,1.97458786,20744.0,20743.0,0.01392153]
[1673765132937,1.99436107,20744.0,20743.0,0.01392153]
[1673765133700,2.44665589,20744.0,20743.0,0.01392153]
[1673765133933,2.08736107,20744.0,20743.0,0.01392153]
[1673765134763,2.44665154,20744.0,20743.0,0.01392153]
[1673765134992,2.44665344,20744.0,20743.0,0.01392153]
[1673765135245,2.08736107,20744.0,20743.0,0.01392153]
[1673765135495,2.81976491,20744.0,20743.0,0.01392153]
[1673765135753,2.46047589,20744.0,20743.0,0.01392153]
[1673765136011,2.46047589,20744.0,20743.0,0.20464748]
[1673765136012,2.90698748,20744.0,20743.0,0.20464748]
[1673765136277,2.02812076,20744.0,20743.0,0.01392153]
[1673765136557,1.53755376,20744.0,20743.0,0.01392153]
[1673765136820,1.76705822,20744.0,20743.0,0.01392153]
[1673765137076,1.91075732,20744.0,20743.0,0.01392153]
[1673765137377,1.91078922,20744.0,20743.0,0.01392153]
[1673765137594,1.69515286,20744.0,20743.0,0.01392153]
[1673765137858,2.21929387,20744.0,20743.0,0.01392153]
[1673765138103,2.00365286,20744.0,20743.0,0.01392153]
[1673765138388,2.11009015,20744.0,20743.0,0.01392153]
[1673765138653,1.88090939,20744.0,20743.0,0.01392153]
[1673765140438,2.3623191,20744.0,20743.0,0.01392153]
[1673765141386,1.93125085,20744.0,20743.0,0.01392153]
[1673765141646,2.3623191,20744.0,20743.0,0.01392153]
[1673765141911,3.45714568,20744.0,20742.0,0.01890024]
[1673765142168,1.22247204,20743.0,20742.0,0.01310578]
[1673765142441,2.39208361,20743.0,20742.0,0.01310578]
[1673765142688,2.39208361,20743.0,20742.0,5.78e-06]
[1673765142689,2.44040511,20743.0,20742.0,5.78e-06]
[1673765142957,2.44040511,20743.0,20741.0,0.01944343]
[1673765143216,0.76807693,20742.0,20741.0,0.01944343]
[1673765143467,2.04080293,20742.0,20741.0,0.01944343]
[1673765143754,1.65781785,20742.0,20741.0,4.3e-07]
[1673765144008,2.08898769,20742.0,20739.0,0.01890024]
[1673765144292,0.48941146,20740.0,20739.0,0.01890024]
[1673765144550,2.42756181,20740.0,20739.0,0.01890024]
[1673765144809,2.33606181,20740.0,20739.0,0.01890024]
[1673765145079,2.62351807,20740.0,20739.0,0.01890024]
[1673765145330,2.62352716,20740.0,20739.0,0.01890024]
[1673765145893,2.2642157,20740.0,20739.0,0.01890024]
[1673765146163,1.69273363,20740.0,20739.0,0.01890024]
[1673765146461,1.68423363,20740.0,20739.0,0.01890024]
[1673765146720,2.2669631,20740.0,20739.0,0.01890024]
[1673765146979,2.13708195,20740.0,20739.0,0.01890024]